bitfinex-derivatives/quotes_SOLF0:USTF0_20250924
["timestamp","ask_amount","ask_price","bid_price","bid_amount"]
[1758730627098,1.17023034,213.68,213.63,7.38]
[1758730627301,1.17023034,213.67,213.63,7.38]
[1758730627496,7.52,213.69,213.63,11.5906]
[1758730627691,1.17022621,213.68,213.59,65.5131]
[1758730627892,1.17022621,213.67,213.61,7.38]
[1758730628091,80.36,213.71,213.64,4.2104]
[1758730628292,2.34042676,213.7,213.64,4.2104]
[1758730628492,2.34042676,213.69,213.65,7.38]
[1758730628696,1.17021338,213.68,213.65,7.38]
[1758730628895,1.17021338,213.67,213.65,7.38]
[1758730629199,80.36,213.71,213.65,7.38]
[1758730629398,2.34042586,213.7,213.62,7.38]
[1758730629597,117.72,213.72,213.62,7.38]
[1758730629795,1.17005855,213.71,213.62,7.38]
[1758730629996,1.17005855,213.7,213.67,7.38]
[1758730630197,125.24,213.72,213.67,7.38]
[1758730630396,1.17005811,213.71,213.67,7.38]
[1758730630597,1.17005811,213.7,213.67,7.38]
[1758730630903,1.170104,213.69,213.6,7.38]
[1758730631103,7.52,213.71,213.6,7.38]
[1758730631297,2.34022458,213.7,213.6,7.38]
[1758730631598,1.17011222,213.69,213.61,4.211]
[1758730631803,1.17011277,213.68,213.61,4.211]
[1758730632004,7.52,213.71,213.61,4.211]
[1758730632196,2.340303,213.7,213.61,4.211]
[1758730632501,1.1701515,213.69,213.62,4.2108]
[1758730632800,1.1701515,213.68,213.62,4.2108]
[1758730633005,7.52,213.71,213.65,4.2104]
[1758730633296,2.34029324,213.7,213.61,65.5071]
[1758730633500,117.72,213.72,213.62,7.38]
[1758730633689,1.1700625,213.71,213.62,7.38]
[1758730633890,117.72,213.72,213.67,7.38]
[1758730634190,340.72,213.75,213.65,7.38]
[1758730634388,2.33978204,213.74,213.68,4.2098]
[1758730634592,2.33978204,213.74,213.64,65.4974]
[1758730634593,1.16989102,213.73,213.66,7.38]
[1758730634796,340.72,213.75,213.66,7.38]
[1758730635104,1.16987411,213.74,213.66,7.38]
[1758730635404,340.72,213.75,213.66,7.38]
[1758730635701,1.16984096,213.74,213.66,7.38]
[1758730636001,340.72,213.75,213.66,7.38]
[1758730636189,1.16984069,213.74,213.66,7.38]
[1758730636397,340.72,213.75,213.66,7.38]
[1758730636596,1.16984069,213.74,213.66,7.38]
[1758730636897,7.52,213.72,213.6,7.38]
[1758730637104,1.16984069,213.71,213.6,7.38]
[1758730637405,1.16984069,213.71,213.65,7.38]
[1758730637701,340.72,213.75,213.65,7.38]
[1758730637902,2.3399572,213.74,213.65,11.5902]
[1758730638093,2.3399572,213.73,213.65,11.5902]
[1758730638298,2.339966,213.72,213.65,11.5902]
[1758730638498,1.1699786,213.71,213.65,7.38]
[1758730638698,340.72,213.75,213.65,7.38]
[1758730638899,2.33999186,213.74,213.65,7.38]
[1758730639206,2.33999186,213.73,213.68,4.2098]
[1758730639405,340.72,213.75,213.66,7.38]
[1758730639604,2.3397163,213.74,213.66,7.38]
[1758730639900,1.16985815,213.73,213.66,7.38]
[1758730640104,458.4,213.75,213.68,4.2098]
[1758730640302,2.3397152,213.74,213.66,7.38]
[1758730640503,458.4,213.75,213.67,65.4891]
[1758730640798,1.16980854,213.74,213.67,65.4891]
[1758730640998,458.4,213.75,213.67,65.4891]
[1758730641193,1.16980824,213.74,213.69,3.37145563]
[1758730641405,7.52,213.81,213.7,7.38]
[1758730641705,47.21948562,213.8,213.7,7.38]
[1758730641905,2.33948562,213.79,213.7,7.38]
[1758730642106,2.33948562,213.78,213.72,4.209]
[1758730642303,1.16974281,213.77,213.72,4.209]
[1758730642505,44.88,213.8,213.71,7.38]
[1758730642805,2.33927612,213.79,213.71,7.38]
[1758730643005,2.33927612,213.78,213.71,7.38]
[1758730643208,2.33927612,213.77,213.71,7.38]
[1758730643399,1.16963806,213.76,213.72,4.2089]
[1758730643601,44.88,213.8,213.72,4.2089]
[1758730643801,2.3392929,213.79,213.72,4.2089]
[1758730644109,7.4,213.77,213.7,11.5894]
[1758730644303,2.33935553,213.76,213.66,7.5]
[1758730644503,3.37145563,213.78,213.66,7.5]
[1758730644504,9.73935553,213.75,213.66,7.5]
[1758730644807,2.33935553,213.74,213.66,7.5]
[1758730645011,1.16964645,213.73,213.66,7.5]
[1758730645308,1.16964645,213.73,213.64,3.37145563]
[1758730645309,5.13451496,213.83,213.68,7.5]
[1758730645502,9.73962169,213.82,213.68,7.5]
[1758730645806,74.13962169,213.81,213.68,7.5]
[1758730646106,2.33962169,213.8,213.68,7.5]
[1758730646303,2.33962169,213.8,213.67,68.86045563]
[1758730646304,2.33962169,213.79,213.71,7.5]
[1758730646515,1.16981504,213.78,213.71,7.5]
[1758730646705,52.16,213.8,213.71,7.5]
[1758730646905,2.33918442,213.79,213.71,7.5]
[1758730647109,1.16959221,213.78,213.72,7.5]
[1758730647408,7.4,213.86,213.76,7.5]
[1758730647710,2.33887092,213.85,213.76,10.87145563]
[1758730647909,2.33887092,213.84,213.76,10.87145563]
[1758730648106,2.33887092,213.83,213.78,4.2078]
[1758730648406,2.3388768,213.82,213.72,10.87145563]
[1758730648603,1.16943546,213.81,213.72,10.87145563]
[1758730648805,7.4,213.84,213.72,10.87145563]
[1758730649110,2.33894882,213.83,213.72,10.87145563]
[1758730649312,2.33894882,213.82,213.74,7.5]
[1758730649512,1.16947441,213.81,213.74,7.5]
[1758730649707,7.4,213.84,213.74,7.5]
[1758730650012,2.33893286,213.83,213.77,4.2079]
[1758730650214,1.16946643,213.82,213.77,4.2079]
[1758730650513,7.4,213.84,213.75,7.5]
[1758730650714,1.16937515,213.83,213.75,7.5]
[1758730651015,1.16938354,213.82,213.76,4.2081]
[1758730651310,7.4,213.82,213.7,7.5]
[1758730651505,1.16948648,213.81,213.74,4.2085]
[1758730651707,7.4,213.82,213.73,7.5]
[1758730652111,7.4,213.82,213.76,4.2081]
[1758730652715,7.4,213.82,213.73,7.5]
[1758730653208,1.16954237,213.81,213.73,11.7088]
[1758730653411,11.6072,213.82,213.73,11.7088]
[1758730653713,11.6072,213.82,213.73,7.5]
[1758730653714,1.16954237,213.81,213.73,7.5]
[1758730653911,1.16955015,213.8,213.69,3.37145563]
[1758730654109,13.11074165,213.79,213.68,7.5]
[1758730654315,1.16962644,213.78,213.72,4.2089]
[1758730654511,83.23145563,213.79,213.71,7.5]
[1758730654710,79.86,213.79,213.71,7.5]
[1758730654911,7.57865563,213.82,213.74,4.2084]
[1758730655110,127.35928412,213.81,213.74,4.2084]
[1758730655313,2.33928412,213.8,213.74,4.2084]
[1758730655605,10.77145563,213.82,213.73,7.5]
[1758730655809,88.88955035,213.81,213.73,7.5]
[1758730656014,87.72,213.81,213.73,7.5]
[1758730656308,125.02,213.82,213.73,7.5]
[1758730656508,125.02,213.82,213.77,7.5]
[1758730656713,117.62,213.82,213.75,7.5]
[1758730657116,117.62,213.82,213.79,4.2075]
[1758730657513,2.156518,213.85,213.8,4.2073]
[1758730657709,350.296518,213.87,213.78,9.656518]
[1758730657916,2.33870004,213.86,213.78,9.656518]
[1758730658113,1.16935002,213.85,213.78,9.656518]
[1758730658313,350.296518,213.87,213.78,9.656518]
[1758730658513,1.16934164,213.86,213.78,7.5]
[1758730658713,348.14,213.87,213.78,7.5]
[1758730658917,1.16930419,213.86,213.78,7.5]
[1758730659116,348.14,213.87,213.78,7.5]
[1758730659317,8.56930419,213.86,213.82,4.207]
[1758730659516,7.4,213.86,213.82,4.207]
[1758730660021,340.74,213.87,213.83,7.5]
[1758730660214,1.16930419,213.86,213.83,7.5]
[1758730660417,348.14,213.87,213.82,4.207]
[1758730660616,8.56930419,213.86,213.82,4.207]
[1758730660916,7.4,213.86,213.83,4.2067]
[1758730661423,348.14,213.87,213.83,4.2067]
[1758730661617,7.4,213.85,213.74,7.5]
[1758730662421,7.4,213.85,213.77,7.5]
[1758730663723,7.4,213.85,213.81,4.2071]
[1758730663923,7.4,213.86,213.81,4.2071]
[1758730664124,7.4,213.86,213.77,7.5]
[1758730664425,1.1693077,213.85,213.77,7.5]
[1758730664724,1.1693348,213.84,213.77,4.2079]
[1758730664917,7.4,213.85,213.77,4.2079]
[1758730665118,1.16936191,213.84,213.77,4.2079]
[1758730665314,7.4,213.82,213.74,4.2085]
[1758730665518,7.4,213.82,213.73,7.5]
[1758730665719,7.4,213.8,213.68,7.5]
[1758730665918,2.33930172,213.79,213.7,4.2093]
[1758730666121,118.76965086,213.78,213.7,4.2093]
[1758730666423,117.6,213.78,213.68,7.5]
[1758730666725,117.6,213.78,213.71,7.5]
[1758730666918,117.58,213.79,213.71,7.5]
[1758730667126,124.98,213.8,213.71,7.5]
[1758730667320,117.58,213.8,213.71,7.5]
[1758730667515,117.58,213.81,213.76,4.2082]
[1758730667718,117.58,213.82,213.76,4.2082]
[1758730667922,11.6068,213.84,213.76,11.7082]
[1758730668122,119.91889772,213.83,213.76,11.7082]
[1758730668326,1.16944886,213.82,213.76,11.7082]
[1758730668531,117.58,213.83,213.76,11.7082]
[1758730668723,1.1694114,213.82,213.76,11.7082]
[1758730668923,117.58,213.83,213.76,11.7082]
[1758730669226,1.1694114,213.82,213.76,11.7082]
[1758730669432,7.4,213.8,213.76,11.7082]
[1758730670731,7.4,213.8,213.74,4.2086]
[1758730671332,7.4,213.8,213.7,65.4804]
[1758730671333,1.16944917,213.79,213.75,11.7083]
[1758730671632,7.4,213.8,213.75,11.7083]
[1758730671935,1.16944886,213.79,213.76,11.708]
[1758730672136,7.4,213.8,213.76,7.5]
[1758730672331,1.16944886,213.79,213.76,7.5]
[1758730672533,7.4,213.8,213.76,7.5]
[1758730672734,1.16944886,213.79,213.76,11.7081]
[1758730672934,117.58,213.83,213.74,7.5]
[1758730673239,2.33888034,213.82,213.75,65.4638]
[1758730673538,1.16944017,213.81,213.76,7.5]
[1758730673732,124.98,213.85,213.78,4.2078]
[1758730674039,9.95869638,213.84,213.71,7.19]
[1758730674240,2.33869638,213.83,213.71,7.19]
[1758730674427,2.33869638,213.82,213.71,7.19]
[1758730674632,2.33869638,213.81,213.71,7.19]
[1758730674834,1.16934819,213.8,213.76,4.2081]
[1758730675138,1.16934819,213.79,213.76,11.3981]
[1758730675340,11.8267,213.84,213.76,11.3981]
[1758730675536,2.33882098,213.83,213.76,7.19]
[1758730675745,2.33882098,213.82,213.76,7.19]
[1758730675938,1.16941049,213.81,213.76,7.19]
[1758730676241,1.16941049,213.8,213.78,4.2077]
[1758730676440,1.16941049,213.79,213.78,4.2077]
[1758730676642,1.16941049,213.79,213.73,7.19]
[1758730676842,7.62,213.84,213.73,7.19]
[1758730677029,2.33880422,213.83,213.73,7.19]
[1758730677230,2.33880422,213.82,213.73,7.19]
[1758730677436,2.33880422,213.81,213.73,7.19]
[1758730677639,1.16940211,213.8,213.73,7.19]
[1758730677838,1.16940211,213.79,213.73,7.19]
[1758730678040,7.62,213.84,213.73,7.19]
[1758730678239,2.33880422,213.83,213.77,4.2079]
[1758730678440,9.95880422,213.82,213.73,7.19]
[1758730678637,2.33880422,213.81,213.73,7.19]
[1758730678842,1.16940211,213.8,213.73,7.19]
[1758730679041,1.16940211,213.79,213.73,7.19]
[1758730679346,7.62,213.82,213.73,7.19]
[1758730679549,2.33880386,213.81,213.73,7.19]
[1758730679743,1.16940193,213.8,213.73,7.19]
[1758730679944,1.16940193,213.79,213.73,7.19]
[1758730680242,7.62,213.82,213.73,7.19]
[1758730680544,1.16940193,213.81,213.77,2.15600129]
[1758730680740,117.56,213.86,213.8,4.2073]
[1758730680945,2.33847072,213.85,213.8,4.2073]
[1758730681146,7.62,213.83,213.72,7.4]
[1758730681342,2.33859146,213.82,213.72,7.4]
[1758730681535,1.16923536,213.81,213.74,2.15600129]
[1758730681846,1.16923536,213.8,213.77,4.2079]
[1758730682040,7.62,213.82,213.77,4.2079]
[1758730682346,8.7893561,213.81,213.77,4.2079]
[1758730682555,1.1693561,213.8,213.74,7.4]
[1758730682846,1.1693561,213.79,213.74,7.4]
[1758730683044,1.1693561,213.78,213.74,7.4]
[1758730683244,1.1693561,213.77,213.74,7.4]
[1758730683442,2.15600129,213.83,213.77,4.208]
[1758730683640,2.33890682,213.82,213.77,4.208]
[1758730683952,117.56,213.86,213.74,2.15600129]
[1758730683953,2.33890682,213.81,213.78,7.4]
[1758730684247,1.16945341,213.8,213.79,7.4]
[1758730684640,7.62,213.85,213.79,7.4]
[1758730684841,7.62,213.89,213.83,7.4]
[1758730685043,1.16916745,213.88,213.82,9.55600129]
[1758730685248,7.62,213.89,213.83,7.4]
[1758730685449,1.16905174,213.88,213.86,4.2062]
[1758730685646,7.62,213.93,213.86,9.55600129]
[1758730685849,1.16897378,213.92,213.86,9.55600129]
[1758730686146,117.54,213.95,213.92,4.2051]
[1758730686345,1.16882248,213.94,213.92,4.2051]
[1758730686547,117.54,213.95,213.92,4.2051]
[1758730686747,1.16878434,213.94,213.92,4.2051]
[1758730686950,8.78880945,213.93,213.8,7.4]
[1758730687139,8.78880945,213.93,213.8,72.8486]
[1758730687140,1.16880945,213.92,213.8,72.8486]
[1758730687345,1.16880945,213.92,213.84,2.15600129]
[1758730687541,1.16880945,213.92,213.86,4.2061]
[1758730688041,3.32481074,213.92,213.82,2.15600129]
[1758730688244,8.78880945,213.91,213.82,6.36300129]
[1758730688435,8.78880945,213.91,213.8,7.4]
[1758730688436,7.62,213.89,213.8,9.55600129]
[1758730688641,3.32481074,213.88,213.78,2.15600129]
[1758730688948,1.16880945,213.87,213.78,2.15600129]
[1758730689249,1.16880945,213.87,213.81,4.2071]
[1758730689949,1.16880945,213.87,213.8,2.15600129]
[1758730690248,1.16880945,213.87,213.79,2.15600129]
[1758730690651,1.16880945,213.87,213.78,72.8555]
[1758730690848,8.78880945,213.87,213.82,4.2069]
[1758730691048,48.04,213.88,213.82,4.2069]
[1758730691250,7.62,213.86,213.82,4.2069]
[1758730691950,7.62,213.87,213.8,4.2074]
[1758730692147,7.62,213.85,213.8,4.2074]
[1758730693547,52.246,213.88,213.8,4.2074]
[1758730693548,7.62,213.84,213.8,4.2074]
[1758730693750,48.04,213.88,213.79,72.8525]
[1758730693954,1.16919091,213.87,213.79,72.8525]
[1758730694149,48.04,213.88,213.79,72.8525]
[1758730694455,1.16912538,213.87,213.79,72.8525]
[1758730694650,48.04,213.88,213.84,4.2065]
[1758730694951,1.16912538,213.87,213.84,4.2065]
[1758730695254,48.04,213.88,213.84,4.2065]
[1758730695547,7.62,213.87,213.84,4.2065]
[1758730695753,48.04,213.88,213.82,4.207]
[1758730695954,48.04,213.88,213.79,72.8521]
[1758730696254,7.62,213.87,213.83,4.2067]
[1758730696653,1.16908675,213.86,213.83,4.2067]
[1758730696853,1.16908675,213.85,213.83,4.2067]
[1758730697051,48.04,213.88,213.84,4.2065]
[1758730697259,1.16908675,213.87,213.82,7.4]
[1758730697449,1.16908675,213.86,213.81,65.4465]
[1758730697747,7.62,213.92,213.82,7.4]
[1758730697953,2.33804856,213.91,213.82,7.4]
[1758730698251,1.16902428,213.9,213.82,7.4]
[1758730698451,1.16902428,213.89,213.82,7.4]
[1758730698652,1.16902428,213.88,213.82,7.4]
[1758730698853,7.62,213.92,213.82,7.4]
[1758730699053,2.33791755,213.91,213.82,7.4]
[1758730699249,2.33793626,213.9,213.86,4.2061]
[1758730699447,8.78896813,213.89,213.86,4.2061]
[1758730699652,1.16896813,213.88,213.86,4.2061]
[1758730699851,1.16896813,213.87,213.86,4.2061]
[1758730700047,1.16896813,213.88,213.86,4.2061]
[1758730700250,1.16896813,213.87,213.86,4.2061]
[1758730700451,1.16896813,213.92,213.86,4.2061]
[1758730700754,1.16896813,213.91,213.85,7.4]
[1758730700958,348.12,213.97,213.88,7.4]
[1758730701155,2.3375513,213.96,213.92,4.2049]
[1758730701461,1.16877572,213.95,213.93,7.4]
[1758730701658,1.16877572,213.94,213.93,7.4]
[1758730701851,1.16855436,213.94,213.93,7.4]
[1758730702053,125.1,213.99,213.94,4.2045]
[1758730702257,7.62,213.97,213.94,4.2045]
[1758730702453,1.16855007,213.96,213.95,7.4]
[1758730702652,117.48,213.99,213.96,4.2043]
[1758730702960,1.16845468,213.98,213.96,4.2043]
[1758730703157,1.16845468,213.97,213.96,4.2043]
[1758730703360,1.16845042,213.97,213.96,4.2043]
[1758730703659,1.16845042,213.97,213.95,7.4]
[1758730703860,117.48,213.99,213.95,7.4]
[1758730704060,1.16844205,213.98,213.95,11.6043]
[1758730704268,117.48,213.99,213.95,11.6043]
[1758730704558,1.16844205,213.98,213.95,11.6043]
[1758730704754,117.48,213.99,213.95,11.6043]
[1758730705062,1.16844603,213.98,213.92,4.2049]
[1758730705253,117.48,213.99,213.91,7.43]
[1758730706253,117.48,213.99,213.93,4.2047]
[1758730706454,117.48,213.99,213.93,11.6347]
[1758730706656,7.62,214.01,213.93,7.43]
[1758730706856,1.16844603,214.0,213.95,11.6343]
[1758730707057,1.16844603,213.99,213.95,11.6343]
[1758730707356,7.62,214.01,213.95,7.43]
[1758730707555,7.68,213.99,213.95,7.43]
[1758730708459,7.68,213.99,213.94,4.2045]
[1758730708658,7.68,214.02,213.89,13.71190443]
[1758730708860,5.37198343,214.01,213.9,7.43]
[1758730709050,1.16848343,214.0,213.91,4.2051]
[1758730709558,4.2035,214.01,213.92,4.2049]
[1758730710162,7.68,214.02,213.92,4.2049]
[1758730710858,11.8833,214.02,213.92,4.2049]
[1758730712360,11.8833,214.02,213.89,4.2056]
[1758730712361,1.16850008,214.01,213.89,4.2056]
[1758730712556,7.68,213.97,213.89,2.15387576]
[1758730712757,7.68,213.95,213.87,2.15387576]
[1758730712957,7.68,213.95,213.87,6.35977576]
[1758730714254,4.2048,213.94,213.86,7.43]
[1758730715261,4.2048,213.94,213.86,11.6361]
[1758730715864,7.68,213.95,213.87,4.2059]
[1758730716063,7.68,213.95,213.86,7.43]
[1758730716259,7.68,213.95,213.87,2.15387576]
[1758730717263,7.68,213.95,213.88,4.2057]
[1758730718862,7.68,213.96,213.88,7.43]
[1758730719367,7.68,214.01,213.91,7.43]
[1758730719555,123.42,214.01,213.91,7.43]
[1758730720367,123.42,214.01,213.93,7.43]
[1758730720667,123.42,214.01,213.93,10.7959235]
[1758730721362,123.42,214.01,213.97,4.2039]
[1758730721562,7.68,214.0,213.97,4.2039]
[1758730722467,117.36,214.03,213.97,4.2039]
[1758730722972,1.16844094,214.02,213.97,4.2039]
[1758730723168,125.04,214.03,213.97,4.2039]
[1758730723369,7.68,214.01,213.97,4.2039]
[1758730723671,7.68,214.01,213.93,10.7959235]
[1758730723672,7.68,214.01,213.95,4.2044]
[1758730723870,7.68,214.01,213.93,10.7959235]
[1758730724369,7.68,214.01,213.93,7.43]
[1758730724567,7.68,214.01,213.95,4.2044]
[1758730724760,117.36,214.03,213.91,3.3659235]
[1758730724761,1.16848252,214.0,213.91,3.3659235]
[1758730724961,7.68,214.02,213.91,3.3659235]
[1758730725165,1.16847833,214.01,213.91,3.3659235]
[1758730725364,7.68,214.02,213.93,4.2047]
[1758730727471,1.16843257,214.01,213.93,4.2047]
[1758730727674,7.68,214.02,213.93,4.2047]
[1758730727867,1.16843257,214.01,213.94,4.2045]
[1758730728066,7.68,214.02,213.94,4.2045]
[1758730728267,7.68,214.02,213.92,7.43]
[1758730729180,7.68,214.02,213.96,11.6341]
[1758730729370,117.36,214.03,213.96,11.6341]
[1758730730574,117.36,214.03,213.96,7.43]
[1758730731967,117.36,214.03,213.97,4.204]
[1758730732472,7.68,214.02,213.96,11.6342]
[1758730733372,7.68,214.02,213.96,7.43]
[1758730734371,7.68,214.02,213.96,11.6342]
[1758730736174,117.28,214.06,213.96,7.87]
[1758730736380,1.16826097,214.05,213.96,11.2359235]
[1758730736570,1.16826097,214.04,213.96,11.2359235]
[1758730736778,117.28,214.06,213.98,12.0738]
[1758730737074,1.16824343,214.05,213.98,7.87]
[1758730737282,117.28,214.06,213.98,7.87]
[1758730737476,7.62,214.04,213.98,7.87]
[1758730738880,7.62,214.04,213.98,12.0738]
[1758730739278,117.28,214.06,213.99,4.2035]
[1758730739482,1.16820397,214.05,213.96,7.87]
[1758730739678,117.28,214.06,213.96,7.87]
[1758730739880,1.16820328,214.05,213.96,7.87]
[1758730740077,117.28,214.06,214.0,4.2033]
[1758730740274,1.16820328,214.05,214.01,7.69]
[1758730740481,117.28,214.06,213.99,7.69]
[1758730741276,1.16815693,214.05,213.99,7.69]
[1758730741475,7.47,214.05,213.9,65.4178]
[1758730741674,7.47,214.03,213.91,7.69]
[1758730741880,7.47,214.01,213.91,7.69]
[1758730742077,1.1683986,214.0,213.92,4.2051]
[1758730742277,7.47,214.01,213.92,4.2051]
[1758730742478,1.16840012,214.0,213.92,4.2051]
[1758730742681,7.47,214.01,213.92,4.2051]
[1758730742887,1.1684381,214.0,213.92,4.2051]
[1758730743077,7.47,214.01,213.92,4.2051]
[1758730743279,1.16843865,214.0,213.92,4.2051]
[1758730743478,1.16843865,213.99,213.92,4.2051]
[1758730743676,8.63844674,213.98,213.87,7.69]
[1758730743879,7.47,213.96,213.87,7.69]
[1758730744184,7.47,213.96,213.87,11.8959]
[1758730744385,7.47,213.94,213.85,0.73994722]
[1758730744687,1.16880018,213.93,213.85,0.73994722]
[1758730744886,1.16880883,213.92,213.85,0.73994722]
[1758730745084,7.47,213.91,213.83,7.69]
[1758730745384,7.47,213.89,213.79,7.69]
[1758730745789,7.47,213.89,213.79,21.90198395]
[1758730745989,7.47,213.89,213.79,7.69]
[1758730746182,7.47,213.89,213.79,11.8976]
[1758730746384,1.16899696,213.88,213.79,11.8976]
[1758730746584,1.16907523,213.87,213.79,11.8976]
[1758730746783,7.47,213.89,213.79,11.8976]
[1758730747090,1.16907564,213.88,213.79,11.8976]
[1758730747282,7.47,213.89,213.81,4.2072]
[1758730747486,7.47,213.89,213.79,7.69]
[1758730747680,7.47,213.89,213.81,7.69]
[1758730747882,7.47,213.93,213.81,7.69]
[1758730748084,1.16891962,213.92,213.84,4.2066]
[1758730748278,1.16891962,213.91,213.84,4.2066]
[1758730748482,7.47,213.93,213.81,7.69]
[1758730748682,7.47,213.91,213.81,7.69]
[1758730748987,7.47,213.91,213.82,4.2069]
[1758730749191,7.47,213.91,213.81,7.69]
[1758730750182,7.47,213.91,213.84,4.2066]
[1758730750385,7.47,213.91,213.83,65.4404]
[1758730750694,7.47,213.98,213.86,7.69]
[1758730750990,1.16873344,213.97,213.91,4.2052]
[1758730751192,7.47,213.98,213.91,4.2052]
[1758730751394,1.16863985,213.97,213.91,4.2052]
[1758730751588,7.47,213.98,213.91,4.2052]
[1758730751792,1.16863856,213.97,213.91,4.2052]
[1758730751993,7.47,213.98,213.91,4.2052]
[1758730752188,1.16863795,213.97,213.91,4.2052]
[1758730752495,7.47,213.98,213.91,4.2052]
[1758730752690,7.47,213.98,213.93,4.2048]
[1758730753189,23.77,213.99,213.91,4.2053]
[1758730753492,1.16856283,213.98,213.91,4.2053]
[1758730753694,23.77,213.99,213.91,4.2053]
[1758730753893,1.16856314,213.98,213.91,4.2053]
[1758730754089,23.77,213.99,213.9,7.69]
[1758730754293,7.47,213.97,213.84,7.69]
[1758730754492,1.16856314,213.96,213.84,7.69]
[1758730754687,7.47,213.95,213.84,7.69]
[1758730754884,1.16856314,213.94,213.84,7.69]
[1758730755090,7.47,213.93,213.81,3.3659235]
[1758730755286,7.47,213.93,213.85,4.2063]
[1758730756394,7.47,213.93,213.86,4.2061]
[1758730757399,7.47,213.93,213.88,11.8958]
[1758730758403,7.47,213.93,213.88,4.2058]
[1758730758594,7.47,213.93,213.89,7.69]
[1758730758797,7.47,213.97,213.89,7.69]
[1758730758996,1.16874932,213.96,213.89,7.69]
[1758730759193,1.16874932,213.95,213.89,7.69]
[1758730759400,7.47,213.97,213.88,4.2058]
[1758730759593,1.16871191,213.96,213.89,4.2055]
[1758730759790,1.16871191,213.95,213.89,4.2055]
[1758730759996,7.47,213.97,213.89,4.2055]
[1758730760202,1.16871177,213.96,213.89,4.2055]
[1758730760399,1.16871177,213.95,213.89,4.2055]
[1758730760699,7.47,213.97,213.87,4.206]
[1758730760997,1.16871191,213.96,213.87,4.206]
[1758730761201,1.16871191,213.95,213.87,4.206]
[1758730761402,7.47,213.97,213.87,4.206]
[1758730761603,1.16871191,213.96,213.87,4.206]
[1758730761906,7.47,213.97,213.87,65.4282]
[1758730762101,7.47,213.97,213.88,7.69]
[1758730762498,7.47,214.03,213.91,7.69]
[1758730762699,1.16846911,214.02,213.91,7.69]
[1758730762898,1.16846911,214.01,213.91,7.69]
[1758730763099,7.47,214.03,213.91,7.69]
[1758730763306,1.16843216,214.02,213.91,7.69]
[1758730763504,1.16843216,214.01,213.91,7.69]
[1758730763705,1.16843216,214.0,213.91,7.69]
[1758730764008,7.47,214.03,213.91,7.69]
[1758730764306,1.16843233,214.02,213.94,4.2045]
[1758730764506,1.16843233,214.01,213.94,4.2045]
[1758730764706,7.88,213.99,213.91,7.69]
[1758730764900,1.16856162,213.98,213.91,7.69]
[1758730765099,7.88,213.99,213.91,7.69]
[1758730765100,7.88,213.99,213.91,11.8952]
[1758730765294,1.16852887,213.98,213.91,11.8952]
[1758730765501,4.2041,213.98,213.88,4.2057]
[1758730765701,7.88,213.96,213.88,4.2057]
[1758730766403,7.88,213.96,213.89,4.2055]
[1758730766603,7.88,213.96,213.86,7.39]
[1758730767002,7.88,213.96,213.9,4.2053]
[1758730767994,7.88,213.96,213.88,4.2058]
[1758730768607,7.88,213.96,213.9,4.2055]
[1758730769010,7.88,213.96,213.86,7.39]